fUSD/lending_fUSD_20250906
["ID","MTS","AMOUNT","RATE_DAILY","PERIOD"]
[383920587,1757172682998,-400.0,0.00036164,8]
[383920588,1757172683007,-400.0,0.00036164,8]
[383920589,1757172683017,-266.575925,0.00036164,30]
[383920590,1757172683026,-400.0,0.00036164,8]
[383920591,1757172683036,-400.0,0.00036164,8]
[383920592,1757172683046,-266.575925,0.00036164,30]
[383920593,1757172683055,-400.0,0.00036164,8]
[383920594,1757172683064,-266.575925,0.00036164,30]
[383920595,1757172683074,-703.69,0.00036164,8]
[383920596,1757172683083,-266.575925,0.00036164,30]
[383920597,1757172683093,-190.589297,0.00036164,30]
[383920598,1757172683102,-190.589297,0.00036164,30]
[383920599,1757172683112,-400.0,0.00036164,8]
[383920600,1757172683122,-190.589297,0.00036164,30]
[383920601,1757172683132,-400.0,0.00036164,8]
[383920602,1757172683141,-190.589297,0.00036164,30]
[383920603,1757172683151,-400.0,0.00036164,8]
[383920604,1757172683160,-400.0,0.00036164,8]
[383920605,1757172683170,-400.0,0.00036164,8]
[383920606,1757172683180,-400.0,0.00036164,8]
[383920607,1757172683190,-400.0,0.00036164,8]
[383920608,1757172683199,-400.0,0.00036164,8]
[383920609,1757172683209,-400.0,0.00036164,8]
[383920610,1757172683219,-400.0,0.00036164,8]
[383920611,1757172683228,-400.0,0.00036164,8]
[383920612,1757172683238,-400.0,0.00036164,8]
[383920613,1757172683247,-407.35,0.00036164,8]
[383920614,1757172683261,-400.0,0.00036164,8]
[383920615,1757172683271,-400.0,0.00036164,8]
[383920616,1757172683280,-400.0,0.00036164,8]
[383920617,1757172683290,-400.0,0.00036164,8]
[383920618,1757172683300,-400.0,0.00036164,8]
[383920619,1757172683311,-400.0,0.00036164,8]
[383920620,1757172683320,-400.0,0.00036164,8]
[383920621,1757172683332,-400.0,0.00036164,8]
[383920622,1757172683342,-400.0,0.00036164,8]
[383920623,1757172683352,-400.0,0.00036164,8]
[383920624,1757172683439,-400.0,0.00036164,8]
[383920625,1757172683449,-400.0,0.00036164,8]
[383920626,1757172683459,-400.0,0.00036164,8]
[383920627,1757172683468,-400.0,0.00036164,8]
[383920628,1757172683478,-480.23,0.00036164,8]
[383920629,1757172683487,-400.0,0.00036164,8]
[383920630,1757172683497,-400.0,0.00036164,8]
[383920631,1757172683506,-400.0,0.00036164,8]
[383920632,1757172683516,-151.0,0.00036164,30]
[383920633,1757172683525,-400.0,0.00036164,8]
[383920634,1757172683535,-400.0,0.00036164,8]
[383920635,1757172683545,-400.0,0.00036164,8]
[383920636,1757172683554,-512.18,0.00036164,8]
[383920637,1757172683563,-400.0,0.00036164,8]
[383920638,1757172683573,-400.0,0.00036164,8]
[383920639,1757172683583,-400.0,0.00036164,8]
[383920640,1757172683593,-400.0,0.00036164,8]
[383920641,1757172683603,-590.96,0.00036164,8]
[383920642,1757172683612,-400.0,0.00036164,8]
[383920643,1757172683622,-400.0,0.00036164,8]
[383920644,1757172683632,-453.54548951,0.00036164,8]
[383920645,1757172683642,-400.0,0.00036164,8]
[383920646,1757172683652,-400.0,0.00036164,8]
[383920647,1757172683661,-400.0,0.00036164,8]
[383920648,1757172683670,-400.0,0.00036164,8]
[383920649,1757172683679,-400.0,0.00036164,8]
[383920650,1757172683689,-400.0,0.00036164,8]
[383920651,1757172683700,-400.0,0.00036164,8]
[383920652,1757172683709,-400.0,0.00036164,8]
[383920653,1757172683719,-400.0,0.00036164,8]
[383920654,1757172683728,-400.0,0.00036164,8]
[383920655,1757172683738,-400.0,0.00036164,8]
[383920656,1757172683748,-400.0,0.00036164,8]
[383920657,1757172683758,-400.0,0.00036164,8]
[383920658,1757172683767,-400.0,0.00036164,8]
[383920659,1757172683776,-400.0,0.00036164,8]
[383920660,1757172683786,-400.0,0.00036164,8]
[383920661,1757172683796,-151.0,0.00036164,30]
[383920662,1757172683805,-400.0,0.00036164,8]
[383920663,1757172683815,-388.68610328,0.00036164,8]
[383920664,1757172683827,-400.0,0.00036164,8]
[383920665,1757172683836,-400.0,0.00036164,8]
[383920666,1757172683846,-400.0,0.00036164,8]
[383920667,1757172683856,-400.0,0.00036164,8]
[383920668,1757172683866,-400.0,0.00036164,8]
[383920669,1757172683876,-608.37,0.00036164,8]
[383920670,1757172683885,-400.0,0.00036164,8]
[383920671,1757172683895,-434.46,0.00036164,8]
[383920672,1757172683904,-209.986377,0.00036164,30]
[383920673,1757172683914,-209.986377,0.00036164,30]
[383920674,1757172683924,-400.0,0.00036164,8]
[383920675,1757172683934,-400.0,0.00036164,8]
[383920676,1757172683944,-209.986377,0.00036164,30]
[383920677,1757172683953,-209.986377,0.00036164,30]
[383920678,1757172683963,-209.986377,0.00036164,30]
[383920679,1757172683973,-209.986377,0.00036164,30]
[383920680,1757172683982,-355.03274854,0.00036164,8]
[383920681,1757172683991,-209.986377,0.00036164,30]
[383920682,1757172684001,-209.986377,0.00036164,30]
[383920683,1757172684011,-598.33,0.00036164,8]
[383920684,1757172684021,-502.57,0.00036164,8]
[383920685,1757172684031,-400.0,0.00036164,8]
[383920686,1757172684041,-400.0,0.00036164,8]
[383920687,1757172684050,-400.0,0.00036164,8]
[383920688,1757172684059,-509.06,0.00036164,8]
[383920689,1757172684068,-400.0,0.00036164,8]
[383920690,1757172684078,-400.0,0.00036164,8]
[383920691,1757172684088,-400.0,0.00036164,8]
[383920692,1757172684099,-400.0,0.00036164,8]
[383920693,1757172684109,-400.0,0.00036164,8]
[383920694,1757172684118,-400.0,0.00036164,8]
[383920695,1757172684128,-400.0,0.00036164,8]
[383920696,1757172684137,-435.86,0.00036164,8]
[383920697,1757172684147,-400.0,0.00036164,8]
[383920698,1757172684157,-1534.12,0.00036164,8]
[383920699,1757172684166,-400.0,0.00036164,8]
[383920700,1757172684176,-400.0,0.00036164,8]
[383920701,1757172684185,-400.0,0.00036164,8]
[383920702,1757172684195,-404.63498774,0.00036164,8]
[383920703,1757172684205,-2648.5,0.00036164,8]
[383920704,1757172684216,-400.0,0.00036164,8]
[383920705,1757172684225,-1732.85,0.00036164,8]
[383920706,1757172684235,-400.0,0.00036164,8]
[383920707,1757172684245,-400.0,0.00036164,8]
[383920708,1757172684257,-1845.16,0.00036164,8]
[383920709,1757172684267,-400.0,0.00036164,8]
[383920710,1757172684276,-151.0,0.00036164,30]
[383920711,1757172684286,-299.191466,0.00036164,30]
[383920712,1757172684295,-151.0,0.00036164,30]
[383920713,1757172684306,-299.191466,0.00036164,30]
[383920714,1757172684316,-626.948868,0.00036164,30]
[383920715,1757172684326,-626.948868,0.00036164,30]
[383920716,1757172684337,-299.191466,0.00036164,30]
[383920717,1757172684347,-299.191466,0.00036164,30]
[383920718,1757172684357,-400.0,0.00036164,8]
[383920719,1757172684366,-626.948868,0.00036164,30]
[383920720,1757172684375,-299.191466,0.00036164,30]
[383920721,1757172684385,-626.948868,0.00036164,30]
[383920722,1757172684395,-299.191466,0.00036164,30]
[383920723,1757172684404,-155.999353,0.00036164,30]
[383920724,1757172684414,-299.191466,0.00036164,30]
[383920725,1757172684424,-626.948868,0.00036164,30]
[383920726,1757172684433,-495.11,0.00036164,8]
[383920727,1757172684443,-626.948868,0.00036164,30]
[383920728,1757172684452,-299.191466,0.00036164,30]
[383920729,1757172684462,-151.0,0.00036164,30]
[383920730,1757172684471,-151.0,0.00036164,30]
[383920731,1757172684480,-397.59619584,0.00036164,8]
[383920732,1757172684490,-626.948868,0.00036164,30]
[383920733,1757172684499,-626.948868,0.00036164,30]
[383920734,1757172684507,-400.0,0.00036164,8]
[383920735,1757172684517,-300.924224,0.00036164,30]
[383920736,1757172684526,-400.0,0.00036164,8]
[383920737,1757172684536,-152.378364,0.00036164,30]
[383920738,1757172684545,-1089.37,0.00036164,8]
[383920739,1757172684555,-400.0,0.00036164,8]
[383920740,1757172684564,-400.0,0.00036164,8]
[383920741,1757172684574,-400.0,0.00036164,8]
[383920742,1757172684584,-400.0,0.00036164,8]
[383920743,1757172684596,-409.91,0.00036164,8]
[383920744,1757172684606,-400.0,0.00036164,8]
[383920745,1757172684616,-2279.31,0.00036164,8]
[383920746,1757172684627,-400.0,0.00036164,8]
[383920747,1757172684636,-423.72,0.00036164,8]
[383920748,1757172684646,-400.0,0.00036164,8]
[383920749,1757172684656,-1049.01,0.00036164,8]
[383920750,1757172684666,-400.0,0.00036164,8]
[383920751,1757172684675,-400.0,0.00036164,8]
[383920752,1757172684684,-400.0,0.00036164,8]
[383920753,1757172684694,-457.92,0.00036164,8]
[383920754,1757172684703,-427.44,0.00036164,8]
[383920755,1757172684712,-400.0,0.00036164,8]
[383920756,1757172684721,-2989.69,0.00036164,8]
[383920757,1757172684730,-303.621186,0.00036164,8]
[383920758,1757172684740,-255.724684,0.00036164,8]
[383920759,1757172684750,-479.57,0.00036164,8]
[383920760,1757172684760,-571.91,0.00036164,8]
[383920761,1757172684771,-2140.52,0.00036164,8]
[383920762,1757172684781,-400.0,0.00036164,8]
[383920763,1757172684791,-400.0,0.00036164,8]
[383920764,1757172684801,-756.95,0.00036164,8]
[383920765,1757172684811,-400.0,0.00036164,8]
[383920766,1757172684820,-400.0,0.00036164,8]
[383920767,1757172684831,-400.0,0.00036164,8]
[383920768,1757172684842,-400.0,0.00036164,8]
[383920769,1757172684853,-500.0,0.00036164,2]
[383920770,1757172684863,-422.99791387,0.00036164,8]
[383920771,1757172684872,-673.56,0.00036164,8]
[383920772,1757172684882,-400.0,0.00036164,8]
[383920773,1757172684893,-400.0,0.00036164,8]
[383920774,1757172684904,-423.16302,0.00036164,8]
[383920775,1757172684914,-400.0,0.00036164,8]
[383920776,1757172684924,-1233.86,0.00036164,8]
[383920777,1757172684935,-945.88,0.00036164,8]
[383920778,1757172684945,-400.0,0.00036164,8]
[383920779,1757172684957,-419.78,0.00036164,8]
[383920780,1757172684967,-400.0,0.00036164,8]
[383920781,1757172684977,-604.44,0.00036164,8]
[383920782,1757172684988,-400.0,0.00036164,8]
[383920783,1757172684997,-992.17,0.00036164,8]
[383920784,1757172685007,-400.0,0.00036164,8]
[383920785,1757172685016,-404.01309991,0.00036164,8]
[383920786,1757172685025,-1045.05,0.00036164,8]
[383920787,1757172685034,-400.0,0.00036164,8]
[383920788,1757172685042,-429.91,0.00036164,8]
[383920789,1757172685051,-400.0,0.00036164,8]
[383920790,1757172685059,-400.0,0.00036164,8]
[383920791,1757172685067,-400.0,0.00036164,8]
[383920792,1757172685076,-400.0,0.00036164,8]
[383920793,1757172685085,-413.34,0.00036164,8]
[383920794,1757172685095,-400.0,0.00036164,8]
[383920795,1757172685105,-400.0,0.00036164,8]
[383920796,1757172685115,-400.0,0.00036164,8]
[383920797,1757172685126,-400.0,0.00036164,8]
[383920798,1757172685135,-400.0,0.00036164,8]
[383920799,1757172685146,-400.0,0.00036164,8]
[383920800,1757172685156,-400.0,0.00036164,8]
[383920801,1757172685166,-790.23,0.00036164,8]
[383920802,1757172685176,-400.0,0.00036164,8]
[383920803,1757172685186,-489.19771184,0.00036164,8]
[383920804,1757172685195,-400.0,0.00036164,8]
[383920805,1757172685205,-400.0,0.00036164,8]
[383920806,1757172685215,-2436.64,0.00036164,8]
[383920807,1757172685225,-400.0,0.00036164,8]
[383920808,1757172685234,-400.0,0.00036164,8]
[383920809,1757172685243,-1094.56,0.00036164,8]
[383920810,1757172685254,-400.0,0.00036164,8]
[383920811,1757172685265,-400.0,0.00036164,8]
[383920812,1757172685275,-400.0,0.00036164,8]
[383920813,1757172685284,-400.0,0.00036164,8]
[383920814,1757172685295,-400.0,0.00036164,8]
[383920815,1757172685305,-730.61,0.00036164,8]
[383920816,1757172685314,-535.79,0.00036164,8]
[383920817,1757172685323,-400.0,0.00036164,8]
[383920818,1757172685333,-651.47,0.00036164,8]
[383920819,1757172685343,-400.0,0.00036164,8]
[383920820,1757172685353,-418.47,0.00036164,8]
[383920821,1757172685362,-2213.66,0.00036164,8]
[383920822,1757172685372,-652.06,0.00036164,8]
[383920823,1757172685382,-458.46,0.00036164,8]
[383920824,1757172685392,-455.66,0.00036164,8]
[383920825,1757172685401,-400.0,0.00036164,8]
[383920826,1757172685411,-400.0,0.00036164,8]
[383920827,1757172685420,-400.0,0.00036164,8]
[383920828,1757172685429,-453.6,0.00036164,8]
[383920829,1757172685439,-400.0,0.00036164,8]
[383920830,1757172685449,-400.0,0.00036164,8]
[383920831,1757172685459,-400.0,0.00036164,8]
[383920832,1757172685468,-1828.0,0.00036164,8]
[383920833,1757172685478,-644.18,0.00036164,8]
[383920834,1757172685487,-1117.06,0.00036164,8]
[383920835,1757172685496,-400.0,0.00036164,8]
[383920836,1757172685507,-553.32,0.00036164,8]
[383920837,1757172685516,-1820.35,0.00036164,8]
[383920838,1757172685526,-400.0,0.00036164,8]
[383920839,1757172685536,-400.0,0.00036164,8]
[383920840,1757172685546,-671.63,0.00036164,8]
[383920841,1757172685555,-400.0,0.00036164,8]
[383920842,1757172685565,-1362.35,0.00036164,8]
[383920843,1757172685574,-1175.85,0.00036164,8]
[383920844,1757172685583,-400.0,0.00036164,8]
[383920845,1757172685593,-400.0,0.00036164,8]
[383920846,1757172685603,-400.0,0.00036164,8]
[383920847,1757172685612,-631.4,0.00036164,8]
[383920848,1757172685622,-228.52037085,0.00036164,8]
[383920849,1757172685632,-400.0,0.00036164,8]
[383920850,1757172685642,-400.0,0.00036164,8]
[383920851,1757172685652,-400.0,0.00036164,8]
[383920852,1757172685662,-400.0,0.00036164,8]
[383920853,1757172685672,-400.0,0.00036164,8]
[383920854,1757172685681,-400.0,0.00036164,8]
[383920855,1757172685691,-400.0,0.00036164,8]
[383920856,1757172685700,-400.0,0.00036164,8]
[383920857,1757172685709,-400.0,0.00036164,8]
[383920858,1757172685718,-400.0,0.00036164,8]
[383920859,1757172685728,-405.46784591,0.00036164,8]
[383920860,1757172685737,-1093.83,0.00036164,8]
[383920861,1757172685748,-400.0,0.00036164,8]
[383920862,1757172685757,-490.39,0.00036164,8]
[383920863,1757172685767,-400.0,0.00036164,8]
[383920864,1757172685776,-400.0,0.00036164,8]
[383920865,1757172685785,-543.1,0.00036164,8]
[383920866,1757172685795,-428.7,0.00036164,8]
[383920867,1757172685805,-400.0,0.00036164,8]
[383920868,1757172685814,-400.0,0.00036164,8]
[383920869,1757172685823,-400.0,0.00036164,8]
[383920870,1757172685834,-400.0,0.00036164,8]
[383920871,1757172685844,-600.99,0.00036164,8]
[383920872,1757172685854,-400.0,0.00036164,8]
[383920873,1757172685865,-515.24,0.00036164,8]
[383920874,1757172685875,-400.0,0.00036164,8]
[383920875,1757172685884,-400.0,0.00036164,8]
[383920876,1757172685893,-533.89,0.00036164,8]
[383920877,1757172685903,-522.78,0.00036164,8]
[383920878,1757172685913,-400.0,0.00036164,8]
[383920879,1757172685922,-400.0,0.00036164,8]
[383920880,1757172685932,-501.41,0.00036164,8]
[383920881,1757172685941,-868.68,0.00036164,8]
[383920882,1757172685951,-400.0,0.00036164,8]
[383920883,1757172685960,-472.9,0.00036164,8]
[383920884,1757172685970,-966.02,0.00036164,8]
[383920885,1757172685979,-402.34150443,0.00036164,8]
[383920886,1757172685988,-466.62,0.00036164,8]
[383920887,1757172685997,-400.0,0.00036164,8]
[383920888,1757172686007,-1411.12,0.00036164,8]
[383920889,1757172686016,-400.0,0.00036164,8]
[383920890,1757172686026,-578.15,0.00036164,8]
[383920891,1757172686035,-400.0,0.00036164,8]
[383920892,1757172686044,-400.0,0.00036164,8]
[383920893,1757172686054,-400.0,0.00036164,8]
[383920894,1757172686064,-1435.63,0.00036164,8]
[383920895,1757172686073,-400.0,0.00036164,8]
[383920896,1757172686083,-788.1,0.00036164,8]
[383920897,1757172686093,-400.0,0.00036164,8]
[383920898,1757172686103,-400.0,0.00036164,8]
[383920899,1757172686113,-619.13,0.00036164,8]
[383920900,1757172686124,-481.71247991,0.00036164,8]
[383920901,1757172686135,-400.0,0.00036164,8]
[383920902,1757172686145,-400.0,0.00036164,5]
[383920903,1757172686155,-619.22,0.00036164,8]
[383920904,1757172686164,-225.38834939,0.00036164,8]
[383920905,1757172686173,-400.0,0.00036164,8]
[383920906,1757172686182,-3490.54,0.00036164,8]
[383920907,1757172686192,-405.72456102,0.00036164,8]
[383920908,1757172686201,-400.0,0.00036164,8]
[383920909,1757172686210,-2760.38,0.00036164,8]
[383920910,1757172686220,-404.21777518,0.00036164,8]
[383920911,1757172686229,-400.0,0.00036164,8]
[383920912,1757172686239,-435.82,0.00036164,8]
[383920913,1757172686251,-415.83,0.00036164,8]
[383920914,1757172686263,-400.0,0.00036164,8]
[383920915,1757172686273,-424.35,0.00036164,8]
[383920916,1757172686282,-2385.83,0.00036164,8]
[383920917,1757172686291,-406.31042677,0.00036164,8]
[383920918,1757172686301,-400.0,0.00036164,8]
[383920919,1757172686311,-400.0,0.00036164,8]
[383920920,1757172686321,-400.0,0.00036164,8]
[383920921,1757172686331,-473.94769771,0.00036164,8]
[383920922,1757172686340,-574.35,0.00036164,8]
[383920923,1757172686350,-400.0,0.00036164,8]
[383920924,1757172686359,-401.73,0.00036164,8]
[383920925,1757172686369,-400.0,0.00036164,8]
[383920926,1757172686380,-400.0,0.00036164,8]
[383920927,1757172686390,-400.0,0.00036164,8]
[383920928,1757172686401,-1126.95,0.00036164,8]
[383920929,1757172686410,-491.37,0.00036164,8]
[383920930,1757172686420,-400.0,0.00036164,8]
[383920931,1757172686431,-4593.42,0.00036164,8]
[383920932,1757172686441,-1283.79,0.00036164,8]
[383920933,1757172686451,-400.0,0.00036164,8]
[383920934,1757172686460,-400.0,0.00036164,8]
[383920935,1757172686470,-574.59,0.00036164,8]
[383920936,1757172686479,-400.0,0.00036164,8]
[383920937,1757172686489,-487.5,0.00036164,8]
[383920938,1757172686498,-400.0,0.00036164,8]
[383920939,1757172686507,-400.0,0.00036164,8]
[383920940,1757172686517,-400.0,0.00036164,8]
[383920941,1757172686527,-400.0,0.00036164,8]
[383920942,1757172686536,-400.0,0.00036164,8]
[383920943,1757172686546,-400.0,0.00036164,8]
[383920944,1757172686556,-435.34250278,0.00036164,8]
[383920945,1757172686566,-400.0,0.00036164,8]
[383920946,1757172686576,-400.0,0.00036164,8]
[383920947,1757172686586,-400.0,0.00036164,8]
[383920948,1757172686596,-531.23,0.00036164,8]
[383920949,1757172686605,-400.0,0.00036164,8]
[383920950,1757172686615,-400.0,0.00036164,8]
[383920951,1757172686624,-425.4,0.00036164,8]
[383920952,1757172686634,-400.0,0.00036164,8]
[383920953,1757172686643,-1425.0,0.00036171,2]
[383920954,1757172686652,-500.0,0.00036173,5]
[383920955,1757172686661,-500.0,0.00036173,5]
[383920956,1757172686671,-567.82093561,0.00036173,5]
[383920957,1757172686680,-159.552256,0.00036173,2]
[383920958,1757172686689,-159.552256,0.00036173,2]
[383920959,1757172686699,-159.552256,0.00036173,2]
[383920960,1757172686708,-239.14845,0.00036203,2]
[383920961,1757172686717,-855.77024084,0.00036211,2]
[383920962,1757172686726,-502.5163148,0.00036221,5]
[383920963,1757172686736,-1000.0,0.00036221,5]
[383920964,1757172686745,-166.66,0.00036239,2]
[383920965,1757172686753,-173.61,0.00036251,2]
[383920966,1757172686762,-4000.0,0.00036265,4]
[383920967,1757172686772,-364.23,0.0003629,60]
[383920968,1757172686782,-151.0,0.00036315,2]
[383920969,1757172686793,-151.0,0.00036315,2]
[383920970,1757172686803,-22577.6770528,0.00036338,2]
[383920971,1757172686813,-173.61,0.0003634,2]
[383920972,1757172686823,-1000.0,0.0003642,7]
[383920973,1757172686832,-1000.0,0.00036421,5]
[383920974,1757172686842,-220.641811,0.00036424,14]
[383920975,1757172686851,-155.678893,0.00036427,30]
[383920976,1757172686861,-155.678893,0.00036427,30]
[383920977,1757172686871,-151.0,0.00036427,30]
[383920978,1757172686880,-155.678893,0.00036427,30]
[383920979,1757172686890,-155.678893,0.00036427,30]
[383920980,1757172686900,-207.057831,0.00036427,30]
[383920981,1757172686910,-195.152575,0.00036427,30]
[383920982,1757172686920,-151.0,0.00036427,30]
[383920983,1757172686930,-151.0,0.00036428,30]
[383920984,1757172686939,-151.0,0.00036428,30]
[383920985,1757172686949,-151.0,0.00036428,30]
[383920986,1757172686959,-1078.236435,0.00036428,30]
[383920987,1757172686968,-151.0,0.00036428,30]
[383920988,1757172686978,-1078.236435,0.00036428,30]
[383920989,1757172686988,-151.0,0.00036428,30]
[383920990,1757172686998,-1078.236435,0.00036428,30]
[383920991,1757172687007,-1078.236435,0.00036428,30]
[383920992,1757172687017,-151.0,0.00036428,30]
[383920993,1757172687027,-151.0,0.00036428,30]
[383920994,1757172687036,-151.0,0.00036428,30]
[383920995,1757172687046,-151.0,0.00036428,30]
[383920996,1757172687055,-715.603592,0.00036428,30]
[383920997,1757172687065,-234.118284,0.00036428,30]
[383920998,1757172687074,-715.603592,0.00036428,30]
[383920999,1757172687084,-151.0,0.00036428,30]
[383921000,1757172687094,-715.603592,0.00036428,30]
[383921001,1757172687105,-151.0,0.00036428,30]
[383921002,1757172687116,-715.603592,0.00036428,30]
[383921003,1757172687127,-266.575925,0.00036428,30]
[383921004,1757172687138,-266.575925,0.00036428,30]
[383921005,1757172687148,-266.575925,0.00036428,30]
[383921006,1757172687158,-266.575925,0.00036428,30]
[383921007,1757172687170,-190.589297,0.00036428,30]
[383921008,1757172687179,-190.589297,0.00036428,30]
[383921009,1757172687189,-190.589297,0.00036428,30]
[383921010,1757172687198,-190.589297,0.00036428,30]
[383921011,1757172687208,-400.0,0.00036437,8]
[383921012,1757172687218,-500.0,0.00036437,8]
[383921013,1757172687227,-500.0,0.00036437,8]
[383921014,1757172687238,-400.0,0.00036437,8]
[383921015,1757172687247,-400.0,0.00036437,8]
[383921016,1757172687263,-400.0,0.00036437,8]
[383921017,1757172687273,-400.0,0.00036437,8]
[383921018,1757172687283,-400.0,0.00036437,8]
[383921019,1757172687292,-400.0,0.00036437,8]
[383921020,1757172687302,-400.0,0.00036437,8]
[383921021,1757172687312,-400.0,0.00036437,8]
[383921022,1757172687324,-459.66,0.00036437,8]
[383921023,1757172687336,-496.66,0.00036437,8]
[383921024,1757172687348,-400.0,0.00036437,8]
[383921025,1757172687357,-423.15720988,0.00036437,8]
[383921026,1757172687367,-400.0,0.00036437,8]
[383921027,1757172687377,-228.19133837,0.00036437,8]
[383921028,1757172687389,-585.53,0.00036437,8]
[383921029,1757172687399,-369.91470962,0.00036437,8]
[383921030,1757172687409,-400.0,0.00036437,8]
[383921031,1757172687420,-400.0,0.00036437,8]
[383921032,1757172687430,-324.6803911,0.00036437,8]
[383921033,1757172687443,-400.0,0.00036437,8]
[383921034,1757172687454,-400.0,0.00036437,8]
[383921035,1757172687463,-400.0,0.00036437,8]
[383921036,1757172687473,-400.0,0.00036437,8]
[383921037,1757172687483,-400.0,0.00036437,8]
[383921038,1757172687494,-400.0,0.00036437,8]
[383921039,1757172687505,-400.0,0.00036437,8]
[383921040,1757172687515,-400.0,0.00036437,8]
[383921041,1757172687525,-400.0,0.00036437,8]
[383921042,1757172687535,-400.0,0.00036437,8]
[383921043,1757172687545,-400.0,0.00036437,8]
[383921044,1757172687555,-418.98465397,0.00036437,8]
[383921045,1757172687565,-400.0,0.00036437,8]
[383921046,1757172687575,-400.0,0.00036437,8]
[383921047,1757172687585,-413.37,0.00036437,8]
[383921048,1757172687595,-400.0,0.00036437,8]
[383921049,1757172687605,-455.35,0.00036437,8]
[383921050,1757172687614,-400.0,0.00036437,8]
[383921051,1757172687625,-400.0,0.00036437,8]
[383921052,1757172687635,-400.0,0.00036437,8]
[383921053,1757172687645,-400.0,0.00036437,8]
[383921054,1757172687655,-400.0,0.00036437,8]
[383921055,1757172687665,-400.0,0.00036437,8]
[383921056,1757172687675,-400.0,0.00036437,8]
[383921057,1757172687685,-400.0,0.00036437,8]
[383921058,1757172687695,-400.0,0.00036437,8]
[383921059,1757172687705,-400.0,0.00036437,8]
[383921060,1757172687714,-466.07,0.00036437,8]
[383921061,1757172687724,-400.0,0.00036437,8]
[383921062,1757172687734,-400.0,0.00036437,8]
[383921063,1757172687744,-400.0,0.00036437,8]
[383921064,1757172687754,-400.0,0.00036437,8]
[383921065,1757172687764,-400.0,0.00036437,8]
[383921066,1757172687774,-400.0,0.00036437,8]
[383921067,1757172687784,-400.0,0.00036437,8]
[383921068,1757172687794,-400.0,0.00036437,8]
[383921069,1757172687805,-396.36068944,0.00036437,8]
[383921070,1757172687815,-400.0,0.00036437,8]
[383921071,1757172687826,-414.18,0.00036437,8]
[383921072,1757172687836,-400.0,0.00036437,8]
[383921073,1757172687846,-400.0,0.00036437,8]
[383921074,1757172687857,-459.72,0.00036437,8]
[383921075,1757172687867,-400.0,0.00036437,8]
[383921076,1757172687877,-400.0,0.00036437,8]
[383921077,1757172687888,-400.0,0.00036437,8]
[383921078,1757172687898,-400.0,0.00036437,8]
[383921079,1757172687910,-400.0,0.00036437,8]
[383921080,1757172687921,-400.0,0.00036437,8]
[383921081,1757172687931,-400.0,0.00036437,8]
[383921082,1757172687941,-400.0,0.00036437,8]
[383921083,1757172687952,-400.0,0.00036437,8]
[383921084,1757172687962,-400.0,0.00036437,8]
[383921085,1757172687973,-400.0,0.00036437,8]
[383921086,1757172687983,-400.0,0.00036437,8]